fUSD/lending_fUSD_20240503
["ID","MTS","AMOUNT","RATE_DAILY","PERIOD"]
[325335024,1714741843596,-1798.73745493,0.00027976,2]
[325335027,1714741843609,-892.11536474,0.00027976,2]
[325335029,1714741843622,-155.72839785,0.00027976,2]
[325335031,1714741843635,-155.0,0.00027976,2]
[325335034,1714741843648,-628.58088692,0.00027976,2]
[325335036,1714741843661,-162.73864695,0.00027976,2]
[325335038,1714741843674,-155.0,0.00027976,2]
[325335042,1714741843687,-155.14535433,0.00027976,2]
[325335044,1714741843700,-409.47154605,0.00027976,2]
[325335046,1714741843713,-155.0,0.00027976,2]
[325335049,1714741843725,-399.89334886,0.00027976,2]
[325335051,1714741843739,-259.64577167,0.00027976,2]
[325335054,1714741843751,-445.6280673,0.00027976,2]
[325335056,1714741843765,-155.0,0.00027976,2]
[325335059,1714741843778,-156.21605765,0.00027976,2]
[325335061,1714741843791,-231.24039108,0.00027976,2]
[325335063,1714741843803,-500.0,0.00027976,2]
[325335066,1714741843816,-351.60662423,0.00027976,120]
[325335068,1714741843829,-885.67510047,0.00027976,2]
[325335071,1714741843842,-155.1281206,0.00027976,2]
[325335073,1714741843855,-190.24683471,0.00027976,2]
[325335075,1714741843868,-157.31713301,0.00027976,2]
[325335078,1714741843883,-251.06996746,0.00027976,2]
[325335080,1714741843901,-879.45334762,0.00027977,2]
[325335083,1714741843914,-2059.95512864,0.00027977,2]
[325335085,1714741843928,-2392.3434406,0.00027977,2]
[325335087,1714741843944,-2940.58633766,0.00027977,2]
[325335088,1714741843957,-574.87184135,0.00027977,2]
[325335089,1714741843971,-2615.43079908,0.00027977,2]
[325335090,1714741843984,-2217.56096565,0.00027977,2]
[325335091,1714741843997,-28527.60016814,0.00027979,2]
[325335092,1714741844009,-700.0,0.00028,3]
[325335093,1714741844022,-2819.94746589,0.00028262,2]
[325335095,1714741844035,-151.87422436,0.00028329,2]
[325335098,1714741844049,-1656.57596456,0.00028613,2]
[325335100,1714741844062,-210.49567394,0.00028898,2]
[325335102,1714741844074,-563.69488817,0.00029,2]
[325335104,1714741844087,-555.58,0.00029,2]
[325335107,1714741844100,-3634.0104,0.00029423,2]
[325335109,1714741844114,-563.74,0.000295,2]
[325335111,1714741844127,-2819.94746589,0.00029798,2]
[325335114,1714741844141,-150.0,0.00029897,10]
[325335116,1714741844154,-2600.0,0.000299,10]
[325335118,1714741844167,-1356773.96869108,0.00029904,30]
[325335227,1714741845646,-472.90510986,0.00029904,30]
[325335230,1714741845676,-1177.0000008,0.00029904,30]
[325335232,1714741845687,-3545.422676,0.00029904,30]
[325335234,1714741845699,-558.25942636,0.00029904,30]
[325335236,1714741845710,-2440.76341339,0.00029904,30]
[325335238,1714741845721,-540.18000005,0.00029904,30]
[325335241,1714741845732,-355349.46198776,0.00029904,30]
[325335243,1714741845742,-161189.61164591,0.00029904,120]
[325335245,1714741845751,-1421.88916862,0.00029904,2]
[325335247,1714741845760,-309.404398,0.00029904,60]
[325335249,1714741845770,-2000.0,0.00029904,120]
[325335251,1714741845779,-342.0,0.00029904,30]
[325335253,1714741845789,-215798.00343416,0.00029998,7]
[325335255,1714741845798,-155.0,0.0003,4]
[325335256,1714741845807,-10000.0,0.0003,15]
[325335259,1714741845817,-157.94898776,0.0003,4]
[325335261,1714741845827,-431.87984043,0.0003,30]
[325335263,1714741845836,-234.76874776,0.0003,120]
[325335264,1714741845846,-1000.0,0.0003,3]
[325335266,1714741845856,-750.0,0.0003,3]
[325335269,1714741845866,-207.0,0.0003,2]
[325335271,1714741845876,-180.0,0.00030258,2]
[325335272,1714741845891,-448.208311,0.0003039,2]
[325335274,1714741845910,-2734.052985,0.0003039,2]
[325335278,1714741845920,-894.788742,0.0003039,2]
[325335279,1714741845932,-586.084427,0.0003039,2]
[325335282,1714741845941,-240.649765,0.0003039,2]
[325335285,1714741845953,-6388.415625,0.0003039,2]
[325335288,1714741845962,-186.753462,0.0003039,2]
[325335292,1714741845971,-683.513246,0.0003039,2]
[325335295,1714741845981,-223.697185,0.0003039,2]
[325335298,1714741845990,-183.151384,0.0003039,2]
[325335300,1714741845999,-166.28,0.000304,2]
[325335302,1714741846009,-154.20279984,0.00030479,7]
[325335305,1714741846018,-157.90378739,0.00030615,7]
[325335308,1714741846028,-448.208311,0.0003077,2]
[325335311,1714741846037,-2734.052985,0.0003077,2]
[325335314,1714741846046,-894.788742,0.0003077,2]
[325335317,1714741846056,-586.084427,0.0003077,2]
[325335320,1714741846066,-240.649765,0.0003077,2]
[325335324,1714741846075,-6388.415625,0.0003077,2]
[325335326,1714741846086,-683.513246,0.0003077,2]
[325335329,1714741846095,-223.697185,0.0003077,2]
[325335332,1714741846105,-183.151384,0.00030896,2]
[325335335,1714741846114,-150.0,0.00030979,10]
[325335338,1714741846123,-151.0,0.0003098,7]
[325335342,1714741846136,-151.0,0.0003098,7]
[325335344,1714741846145,-173.368369,0.0003098,7]
[325335347,1714741846154,-173.368369,0.0003098,7]
[325335350,1714741846163,-151.0,0.0003098,7]
[325335353,1714741846172,-218.473313,0.0003098,7]
[325335356,1714741846181,-218.473313,0.0003098,7]
[325335359,1714741846190,-2669761.02034892,0.0003098,2]
[325335362,1714741846200,-260.424053,0.0003098,7]
[325335365,1714741846209,-151.0,0.0003098,7]
[325335368,1714741846218,-151.0,0.0003098,7]
[325335372,1714741846228,-151.0,0.0003098,7]
[325335374,1714741846237,-383.163197,0.0003098,7]
[325335378,1714741846246,-383.163197,0.0003098,7]
[325335381,1714741846256,-941.299281,0.0003098,7]
[325335384,1714741846266,-151.0,0.0003098,7]
[325335387,1714741846276,-151.0,0.0003098,7]
[325335390,1714741846285,-941.299281,0.0003098,7]
[325335393,1714741846294,-151.0,0.0003098,7]
[325335395,1714741846304,-243.39515,0.0003098,7]
[325335397,1714741846313,-228.075478,0.0003098,7]
[325335399,1714741846323,-458.656013,0.0003098,7]
[325335401,1714741846332,-243.39515,0.0003098,7]
[325335402,1714741846341,-228.075478,0.0003098,7]
[325335404,1714741846350,-151.0,0.0003098,7]
[325335406,1714741846359,-458.656013,0.0003098,7]
[325335409,1714741846369,-153.203861,0.0003098,7]
[325335410,1714741846381,-151.0,0.0003098,7]
[325335413,1714741846391,-151.0,0.0003098,7]
[325335415,1714741846400,-151.0,0.0003098,7]
[325335417,1714741846409,-151.0,0.0003098,7]
[325335418,1714741846419,-151.0,0.0003098,7]
[325335420,1714741846428,-256.608,0.0003098,7]
[325335422,1714741846437,-151.0,0.0003098,7]
[325335425,1714741846447,-256.608,0.0003098,7]
[325335426,1714741846456,-346.927135,0.0003098,7]
[325335428,1714741846466,-151.0,0.0003098,7]
[325335431,1714741846475,-346.927135,0.0003098,7]
[325335433,1714741846484,-151.0,0.0003098,7]
[325335434,1714741846494,-151.0,0.0003098,7]
[325335436,1714741846503,-237.203199,0.0003098,7]
[325335440,1714741846513,-237.203199,0.0003098,7]
[325335443,1714741846523,-157.49853,0.0003098,7]
[325335446,1714741846532,-151.0,0.0003098,7]
[325335449,1714741846541,-1262.681004,0.0003098,7]
[325335452,1714741846550,-1262.681004,0.0003098,7]
[325335455,1714741846561,-151.0,0.0003098,7]
[325335458,1714741846570,-151.0,0.0003098,7]
[325335461,1714741846580,-156.265614,0.0003098,7]
[325335464,1714741846589,-681.308752,0.0003098,7]
[325335467,1714741846598,-681.308752,0.0003098,7]
[325335470,1714741846607,-151.433602,0.0003098,7]
[325335472,1714741846617,-151.0,0.0003098,7]
[325335474,1714741846626,-1187.683415,0.0003098,7]
[325335476,1714741846637,-151.0,0.0003098,7]
[325335478,1714741846646,-1187.683415,0.0003098,7]
[325335480,1714741846655,-151.0,0.0003098,7]
[325335481,1714741846664,-168.540843,0.0003098,7]
[325335483,1714741846673,-168.540843,0.0003098,7]
[325335486,1714741846683,-151.0,0.0003098,7]
[325335488,1714741846692,-388.183293,0.0003098,7]
[325335489,1714741846702,-151.0,0.0003098,7]
[325335492,1714741846712,-388.183293,0.0003098,7]
[325335494,1714741846721,-151.0,0.0003098,7]
[325335496,1714741846731,-1101.227832,0.0003098,7]
[325335498,1714741846739,-151.0,0.0003098,7]
[325335499,1714741846749,-326.913396,0.0003098,7]
[325335502,1714741846758,-1101.227832,0.0003098,7]
[325335504,1714741846767,-326.913396,0.0003098,7]
[325335505,1714741846777,-151.0,0.0003098,7]
[325335508,1714741846786,-151.0,0.0003098,7]
[325335510,1714741846796,-3519.659258,0.0003098,7]
[325335511,1714741846805,-3519.659258,0.0003098,7]
[325335513,1714741846814,-1306.697823,0.0003098,7]
[325335515,1714741846823,-1306.697823,0.0003098,7]
[325335517,1714741846833,-275.250726,0.0003098,7]
[325335519,1714741846842,-275.250726,0.0003098,7]
[325335522,1714741846852,-584.800431,0.0003098,7]
[325335524,1714741846862,-584.800431,0.0003098,7]
[325335526,1714741846871,-233.374936,0.0003098,7]
[325335528,1714741846882,-233.374936,0.0003098,7]
[325335529,1714741846894,-151.0,0.0003098,7]
[325335531,1714741846910,-189.860046,0.0003098,7]
[325335534,1714741846920,-304.43936,0.0003098,7]
[325335535,1714741846930,-303.478422,0.0003098,7]
[325335537,1714741846940,-304.43936,0.0003098,7]
[325335539,1714741846950,-303.478422,0.0003098,7]
[325335542,1714741846960,-151.0,0.0003098,7]
[325335544,1714741846969,-273.647756,0.0003098,7]
[325335545,1714741846978,-273.647756,0.0003098,7]
[325335547,1714741846988,-838.869152,0.0003098,7]
[325335549,1714741846998,-838.869152,0.0003098,7]
[325335552,1714741847007,-151.0,0.0003098,7]
[325335553,1714741847017,-151.0,0.0003098,7]
[325335555,1714741847026,-289.581868,0.0003098,7]
[325335557,1714741847035,-151.0,0.0003098,7]
[325335559,1714741847044,-151.0,0.0003098,7]
[325335562,1714741847054,-151.0,0.0003098,7]
[325335564,1714741847063,-151.0,0.0003098,7]
[325335565,1714741847073,-151.0,0.0003098,7]
[325335567,1714741847084,-151.0,0.0003098,7]
[325335569,1714741847094,-151.0,0.0003098,7]
[325335571,1714741847103,-151.404717,0.0003098,7]
[325335573,1714741847113,-151.0,0.0003098,7]
[325335575,1714741847122,-1086.742998,0.0003098,7]
[325335577,1714741847133,-1086.742998,0.0003098,7]
[325335579,1714741847142,-151.0,0.0003098,7]
[325335581,1714741847151,-151.0,0.0003098,7]
[325335583,1714741847160,-352.972666,0.0003098,7]
[325335585,1714741847169,-352.972666,0.0003098,7]
[325335587,1714741847179,-2025.11545,0.0003098,7]
[325335589,1714741847188,-2025.11545,0.0003098,7]
[325335591,1714741847198,-8047.98415,0.0003098,7]
[325335593,1714741847207,-151.0,0.0003098,7]
[325335595,1714741847216,-8047.98415,0.0003098,7]
[325335597,1714741847226,-301.897531,0.0003098,7]
[325335599,1714741847236,-555.908789,0.0003098,7]
[325335601,1714741847245,-301.897531,0.0003098,7]
[325335603,1714741847254,-151.0,0.0003098,7]
[325335605,1714741847264,-555.908789,0.0003098,7]
[325335607,1714741847273,-151.0,0.0003098,7]
[325335609,1714741847282,-151.0,0.0003098,7]
[325335611,1714741847292,-151.0,0.0003098,7]
[325335613,1714741847301,-151.0,0.0003098,7]
[325335615,1714741847310,-151.0,0.0003098,7]
[325335617,1714741847319,-227.562481,0.0003098,7]
[325335619,1714741847328,-227.562481,0.0003098,7]
[325335621,1714741847337,-492.26920761,0.00031,5]
[325335623,1714741847346,-1000.28,0.00031,2]
[325335625,1714741847356,-170.92090071,0.00031045,7]
[325335627,1714741847365,-170.92090071,0.00031068,7]
[325335629,1714741847374,-448.208311,0.00031149,2]
[325335631,1714741847387,-2734.052985,0.00031149,2]
[325335633,1714741847396,-586.084427,0.00031149,2]
[325335635,1714741847405,-894.788742,0.00031149,2]
[325335637,1714741847414,-240.649765,0.00031149,2]
[325335639,1714741847423,-6388.415625,0.00031149,2]
[325335641,1714741847432,-186.753462,0.00031149,2]
[325335643,1714741847442,-683.513246,0.00031149,2]
[325335645,1714741847451,-223.697185,0.00031149,2]
[325335647,1714741847460,-170.92090071,0.00031215,7]
[325335649,1714741847470,-555.58,0.000313,2]
[325335651,1714741847479,-154.606807,0.000313,7]
[325335652,1714741847489,-183.151384,0.00031403,2]
[325335655,1714741847498,-563.74,0.000315,2]
[325335656,1714741847507,-448.208311,0.00031529,2]
[325335658,1714741847516,-2734.052985,0.00031529,2]
[325335660,1714741847526,-586.084427,0.00031529,2]
[325335662,1714741847535,-894.788742,0.00031529,2]
[325335664,1714741847544,-240.649765,0.00031529,2]
[325335666,1714741847553,-6388.415625,0.00031529,2]
[325335668,1714741847562,-683.513246,0.00031529,2]
[325335670,1714741847571,-223.697185,0.00031529,2]
[325335672,1714741847580,-152.75547673,0.00031534,7]
[325335674,1714741847590,-194.36,0.00031644,2]
[325335676,1714741847599,-153.3968618,0.00031748,7]
[325335678,1714741847608,-1000.28,0.00031845,2]
[325335680,1714741847617,-151.0,0.00031896,2]
[325335682,1714741847626,-151.0,0.00031909,7]
[325335684,1714741847637,-151.0,0.00031909,7]
[325335686,1714741847645,-151.0,0.00031909,7]
[325335688,1714741847654,-151.262897,0.00031909,7]
[325335690,1714741847663,-151.0,0.00031909,7]
[325335692,1714741847673,-152.025634,0.00031909,7]
[325335695,1714741847683,-151.0,0.00031909,7]
[325335697,1714741847693,-151.0,0.00031909,7]
[325335698,1714741847702,-151.0,0.00031909,7]
[325335699,1714741847711,-151.0,0.00031909,7]
[325335700,1714741847721,-166.682884,0.00031909,7]
[325335701,1714741847730,-166.682884,0.00031909,7]
[325335702,1714741847739,-151.0,0.00031909,7]
[325335703,1714741847749,-1071.076599,0.00031909,7]
[325335704,1714741847758,-1071.076599,0.00031909,7]
[325335705,1714741847767,-530.856507,0.00031909,7]
[325335706,1714741847777,-151.0,0.00031909,7]
[325335707,1714741847787,-151.0,0.00031909,7]
[325335708,1714741847796,-151.0,0.00031909,7]
[325335710,1714741847806,-151.0,0.00031909,7]
[325335712,1714741847816,-183.151384,0.00031909,2]
[325335714,1714741847826,-448.208311,0.00031909,2]
[325335716,1714741847837,-2734.052985,0.00031909,2]
[325335718,1714741847847,-586.084427,0.00031909,2]
[325335720,1714741847857,-894.788742,0.00031909,2]
[325335722,1714741847867,-240.649765,0.00031909,2]
[325335724,1714741847880,-6388.415625,0.00031909,2]
[325335726,1714741847890,-186.753462,0.00031909,2]
[325335728,1714741847899,-683.513246,0.00031909,2]
[325335730,1714741847910,-223.697185,0.00031909,2]
[325335732,1714741847920,-150.53,0.00031963,2]
[325335734,1714741847929,-332.6433445,0.00032,4]
[325335737,1714741847939,-800.0,0.00032,3]
[325335739,1714741847948,-161.6566907,0.00032013,7]
[325335741,1714741847958,-151.87422436,0.00032186,2]
[325335743,1714741847968,-154.17335258,0.00032602,7]
[325335745,1714741847977,-1448.732685,0.0003269,2]
[325335747,1714741847988,-192.511904,0.0003272,2]
[325335748,1714741847997,-166.28,0.000328,2]
[325335750,1714741848006,-996.0,0.000329,2]
[325335752,1714741848016,-153.3968618,0.00032954,7]
[325335754,1714741848025,-440.12598614,0.00033,3]
[325335756,1714741848034,-157.50932003,0.00033,120]
[325335758,1714741848043,-3194.87521804,0.00033,5]
[325335760,1714741848053,-1687.746253,0.00033,2]
[325335762,1714741848062,-177.0,0.00033,2]
[325335764,1714741848071,-192.511904,0.00033538,2]
[325335767,1714741848082,-165.65643103,0.00033767,7]
[325335769,1714741848092,-10000.0,0.00033855,2]
[325335771,1714741848102,-850.0,0.00034,3]
[325335773,1714741848112,-555.58,0.00034,2]
[325335775,1714741848121,-3142.267,0.00034144,2]
[325335777,1714741848132,-24602.527,0.00034144,2]
[325335779,1714741848142,-5901.0,0.00034144,2]
[325335781,1714741848150,-5739.0,0.00034144,2]
[325335783,1714741848159,-2292.0,0.00034144,2]
[325335785,1714741848168,-288.0,0.00034144,2]
[325335786,1714741848178,-563.74,0.000342,2]
[325335788,1714741848187,-159.52540121,0.00034339,7]
[325335791,1714741848196,-192.511904,0.00034356,2]
[325335792,1714741848205,-153.33265497,0.0003452,7]
[325335795,1714741848215,-153.3968618,0.00034874,7]
[325335797,1714741848224,-152.75547673,0.00034901,7]
[325335798,1714741848233,-29208.99476558,0.00035,4]
[325335800,1714741848242,-63052.9102,0.000354,2]
[325335803,1714741848251,-132688.3707,0.000354,2]
[325335805,1714741848260,-150.0,0.00035499,30]
[325335807,1714741848270,-634.48,0.00035499,2]
[325335809,1714741848279,-634.48,0.00035499,2]
[325335811,1714741848288,-634.48,0.00035499,2]
[325335813,1714741848297,-634.48,0.00035499,2]
[325335815,1714741848306,-634.48,0.00035499,2]
[325335817,1714741848315,-634.48,0.00035499,2]
[325335819,1714741848324,-634.48,0.00035499,2]
[325335820,1714741848333,-634.48,0.00035499,2]
[325335823,1714741848342,-634.48,0.00035499,2]
[325335824,1714741848352,-634.48,0.00035499,2]
[325335826,1714741848361,-301.01549293,0.00035499,2]
[325335829,1714741848370,-339.91261221,0.00035499,3]
[325335830,1714741848381,-1094738.55431328,0.000355,2]
[325335926,1714741849279,-189.73207955,0.000129,2]
[325335928,1714741849289,-17080.0544477,0.000355,2]
[325335932,1714741849312,-122153.77420744,0.000355,2]
[325335934,1714741849324,-4445.23740939,0.000355,2]
[325335939,1714741849358,-609423.51446293,0.000355,2]
[325335941,1714741849368,-569.30171561,0.000356,30]
[325335943,1714741849379,-996.0,0.000356,2]
[325335945,1714741849387,-166.28,0.000357,7]
[325335947,1714741849397,-669.88517726,0.0003584,10]
[325335949,1714741849407,-900.0,0.00036,3]
[325335951,1714741849416,-151.87422436,0.00036043,2]
[325335953,1714741849426,-972.257,0.00036044,2]
[325335955,1714741849435,-1397.818,0.00036044,2]
[325335956,1714741849445,-2302.491,0.00036044,2]
[325335959,1714741849455,-1260.514,0.00036044,2]
[325335961,1714741849464,-1227.0,0.00036044,2]
[325335963,1714741849473,-542.0,0.00036044,2]
[325335965,1714741849482,-808.0,0.00036044,2]
[325335966,1714741849491,-309.033,0.00036044,2]
[325335969,1714741849501,-1786.0,0.00036044,2]
[325335971,1714741849510,-611.0,0.00036044,2]
[325335973,1714741849519,-437.0,0.00036044,2]
[325335975,1714741849529,-421.012,0.00036044,2]
[325335977,1714741849538,-2455.57,0.00036044,2]
[325335979,1714741849547,-1482.097,0.00036044,2]
[325335981,1714741849556,-150.807,0.00036044,2]
[325335983,1714741849566,-151.013,0.00036044,2]
[325335985,1714741849576,-1143.459,0.00036044,2]
[325335987,1714741849585,-444.287,0.00036044,2]
[325335989,1714741849594,-216.0,0.00036044,2]
[325335991,1714741849603,-1647.783,0.00036044,2]
[325335993,1714741849613,-150.53,0.0003653,2]
[325335995,1714741849623,-153.3968618,0.00036586,7]
[325335997,1714741849634,-555.58,0.000368,2]
[325335999,1714741849643,-155.0,0.00037,4]
[325336000,1714741849652,-135029.04723575,0.00037,10]
[325336001,1714741849661,-681.308752,0.00037,7]
[325336002,1714741849670,-681.308752,0.00037,7]
[325336003,1714741849680,-1187.683415,0.00037,7]
[325336004,1714741849689,-151.0,0.00037,7]
[325336005,1714741849699,-1187.683415,0.00037,7]
[325336006,1714741849709,-151.0,0.00037,7]
[325336007,1714741849719,-168.540843,0.00037,7]
[325336008,1714741849728,-168.540843,0.00037,7]
[325336010,1714741849738,-151.0,0.00037,7]
[325336011,1714741849747,-388.183293,0.00037,7]
[325336013,1714741849756,-563.74,0.00037,2]
[325336015,1714741849766,-151.0,0.00037,7]
[325336017,1714741849776,-388.183293,0.00037,7]
[325336019,1714741849785,-151.0,0.00037,7]
[325336021,1714741849794,-1101.227832,0.00037,7]
[325336023,1714741849804,-151.0,0.00037,7]
[325336025,1714741849814,-326.913396,0.00037,7]
[325336027,1714741849824,-1101.227832,0.00037,7]
[325336029,1714741849834,-326.913396,0.00037,7]
[325336031,1714741849843,-151.0,0.00037,7]
[325336033,1714741849852,-151.0,0.00037,7]
[325336036,1714741849862,-3519.659258,0.00037,7]
[325336038,1714741849872,-3519.659258,0.00037,7]
[325336040,1714741849882,-1306.697823,0.00037,7]
[325336042,1714741849892,-1306.697823,0.00037,7]
[325336043,1714741849901,-275.250726,0.00037,7]
[325336045,1714741849914,-275.250726,0.00037,7]
[325336047,1714741849924,-584.800431,0.00037,7]
[325336050,1714741849933,-584.800431,0.00037,7]
[325336052,1714741849943,-233.374936,0.00037,7]
[325336054,1714741849953,-233.374936,0.00037,7]
[325336056,1714741849963,-151.0,0.00037,7]
[325336058,1714741849972,-304.43936,0.00037,7]
[325336059,1714741849981,-303.478422,0.00037,7]
[325336062,1714741849992,-304.43936,0.00037,7]
[325336064,1714741850002,-303.478422,0.00037,7]
[325336065,1714741850013,-151.0,0.00037,7]
[325336068,1714741850023,-273.647756,0.00037,7]
[325336070,1714741850033,-273.647756,0.00037,7]
[325336072,1714741850043,-838.869152,0.00037,7]
[325336074,1714741850054,-838.869152,0.00037,7]
[325336076,1714741850064,-151.0,0.00037,7]
[325336078,1714741850073,-151.0,0.00037,7]
[325336080,1714741850084,-151.0,0.00037,7]
[325336082,1714741850095,-151.0,0.00037,7]
[325336084,1714741850105,-151.0,0.00037,7]
[325336086,1714741850115,-151.0,0.00037,7]
[325336088,1714741850124,-151.0,0.00037,7]
[325336090,1714741850135,-151.0,0.00037,7]
[325336092,1714741850145,-151.0,0.00037,7]
[325336094,1714741850154,-151.0,0.00037,7]
[325336096,1714741850163,-1086.742998,0.00037,7]
[325336098,1714741850173,-1086.742998,0.00037,7]
[325336100,1714741850182,-151.0,0.00037,7]
[325336102,1714741850192,-151.0,0.00037,7]
[325336104,1714741850201,-352.972666,0.00037,7]
[325336106,1714741850211,-352.972666,0.00037,7]
[325336108,1714741850221,-2025.11545,0.00037,7]
[325336110,1714741850230,-2025.11545,0.00037,7]
[325336112,1714741850240,-8047.98415,0.00037,7]
[325336114,1714741850249,-151.0,0.00037,7]
[325336116,1714741850258,-8047.98415,0.00037,7]
[325336118,1714741850267,-301.897531,0.00037,7]
[325336120,1714741850276,-555.908789,0.00037,7]
[325336122,1714741850285,-301.897531,0.00037,7]
[325336125,1714741850302,-151.0,0.00037,7]
[325336127,1714741850312,-555.908789,0.00037,7]
[325336129,1714741850321,-151.0,0.00037,7]
[325336131,1714741850330,-151.0,0.00037,7]
[325336133,1714741850340,-151.0,0.00037,7]
[325336135,1714741850349,-151.0,0.00037,7]
[325336137,1714741850358,-227.562481,0.00037,7]
[325336138,1714741850368,-227.562481,0.00037,7]
[325336139,1714741850377,-288.0,0.00037144,2]
[325336140,1714741850389,-161.6566907,0.00037345,7]
[325336141,1714741850399,-6971.35793369,0.00037409,2]
[325336142,1714741850409,-1262.681004,0.00037409,7]
[325336143,1714741850418,-1262.681004,0.00037409,7]
[325336144,1714741850428,-249.962206,0.00037409,7]
[325336145,1714741850438,-151.0,0.00037409,7]
[325336146,1714741850447,-16962.58172212,0.000375,3]
[325336147,1714741850457,-310.0,0.000375,3]
[325336148,1714741850466,-383.163197,0.000375,7]
[325336149,1714741850476,-383.163197,0.000375,7]
[325336150,1714741850485,-941.299281,0.000375,7]
[325336151,1714741850494,-287.76431,0.000375,7]
[325336152,1714741850503,-151.0,0.000375,7]
[325336153,1714741850513,-941.299281,0.000375,7]
[325336154,1714741850522,-229.033161,0.000375,7]
[325336155,1714741850531,-243.39515,0.000375,7]
[325336156,1714741850540,-228.075478,0.000375,7]
[325336157,1714741850550,-458.656013,0.000375,7]
[325336158,1714741850559,-243.39515,0.000375,7]
[325336159,1714741850568,-228.075478,0.000375,7]
[325336160,1714741850578,-151.0,0.000375,7]
[325336161,1714741850587,-458.656013,0.000375,7]
[325336162,1714741850597,-255.519644,0.000375,7]
[325336163,1714741850606,-151.0,0.000375,7]
[325336164,1714741850616,-151.0,0.000375,7]
[325336165,1714741850635,-151.0,0.000375,7]
[325336166,1714741850644,-204.829479,0.000375,7]
[325336167,1714741850654,-256.608,0.000375,7]
[325336168,1714741850663,-151.0,0.000375,7]
[325336169,1714741850672,-256.608,0.000375,7]
[325336170,1714741850682,-346.927135,0.000375,7]
[325336171,1714741850691,-151.0,0.000375,7]
[325336172,1714741850701,-346.927135,0.000375,7]
[325336173,1714741850711,-151.0,0.000375,7]
[325336174,1714741850720,-151.0,0.000375,7]
[325336175,1714741850730,-237.203199,0.000375,7]
[325336176,1714741850740,-237.203199,0.000375,7]
[325336177,1714741850749,-151.0,0.000375,7]
[325336178,1714741850759,-154.1824867,0.00037543,7]
[325336179,1714741850769,-161.6566907,0.00037545,7]
[325336180,1714741850780,-152.0,0.00037596,3]
[325336181,1714741850790,-10780.697649,0.000378,2]
[325336182,1714741850800,-152.75547675,0.00037839,7]
[325336183,1714741850810,-153.3968618,0.00037891,7]
[325336184,1714741850820,-16171.046473,0.00038,2]
[325336185,1714741850831,-950.0,0.00038,3]
[325336186,1714741850840,-930.72,0.00038328,45]
[325336187,1714741850850,-793.11,0.00038328,45]
[325336188,1714741850860,-21561.395298,0.000385,2]
[325336189,1714741850870,-634.48,0.00038516,2]
[325336190,1714741850881,-634.48,0.00038516,2]
[325336191,1714741850891,-634.48,0.00038516,2]
[325336192,1714741850901,-2500.0,0.000386,2]
[325336193,1714741850912,-930.72,0.00038602,47]
[325336194,1714741850922,-793.11,0.00038602,47]
[325336195,1714741850932,-153.3968618,0.00038686,7]
[325336196,1714741850942,-166.28,0.000387,7]
[325336197,1714741850952,-300.0,0.00038727,120]
[325336198,1714741850961,-151.0,0.00038748,2]
[325336199,1714741850971,-500.0,0.0003878,10]
[325336200,1714741850981,-500.0,0.0003878,10]
[325336201,1714741850993,-500.0,0.0003878,10]
[325336202,1714741851003,-500.0,0.0003878,10]